Cogmind - Beta 13 @@@ ROGUE MODE // 2024.06.29 @ 10:53:06 Player: buwwet Result: Destroyed by A-27 Freighter with PD Laser Performance ------------- Evolutions (6) 3000 Regions Visited (14) 2800 Robots Destroyed (78) 390 Value Destroyed (3576) 3576 Prototype IDs (2) 40 Alien Tech Used (0) 0 Bonus (1027) 1027 TOTAL SCORE: 10833 Bonus ------- High Alert Combat Kills 28 Follower Combat Kills 199 Entered Garrisons 200 Aligned with FarCom 300 Acquired ECA 300 Cogmind --------- Core Integrity 0/1150 Matter 188/300 Energy 57/100 System Corruption 12% Temperature Cool (6) Movement Core (50) Location -4/Factory Parts ------- > --- POWER (2) -------- (None) > --- PROPULSION (5) --- (None) > --- UTILITY (8) ------ Advanced Target Analyzer Improved System Guard > --- WEAPON (4) ------- (None) > --- INVENTORY (5) ---- (None) Peak State ------------ > --- POWER ------------ Light Fission Core Light Antimatter Reactor > --- PROPULSION ------- Light Treads Flexi-carbon Leg Flexi-carbon Leg Armored Leg Advanced VSS Leg > --- UTILITY ---------- Advanced Heat Sink Medium Storage Unit Advanced Weight Redist. System Advanced Weight Redist. System Targeting Computer Advanced Targeting Computer Advanced Target Analyzer Advanced Transmission Jammer > --- WEAPON ----------- Field Laser Heavy Laser Coil Gun KE Penetrator > --- INVENTORY -------- Light Antimatter Reactor Light Antimatter Reactor Improved Heat Sink Encrypted Comm Array Improved Target Analyzer Improved Cloaking Device Improved System Guard Advanced Plasma Cannon Gauss Rifle Improved Proton Missile Launcher [Rating: 88] Favorites ----------- Power Micro Nuclear Core Engine Ion Engine Power Core Micro Nuclear Core Reactor Light Antimatter Reactor Propulsion Light Treads Treads Light Treads Leg Armored Leg Hover Unit Antigrav System Utility Improved Heat Sink Device Improved Heat Sink Storage Medium Storage Unit Processor Targeting Computer Hackware Hacking Suite Protection Improved Light Armor Plating Weapon Plasma Cannon Energy Gun Heavy Laser Energy Cannon Plasma Cannon Ballistic Gun Assault Rifle Ballistic Cannon Heavy Flak Cannon Launcher Improved Proton Missile Launcher Impact Weapon Hammer Build | -11 -10 -10 -10 -9 -8 -8 -8 -6 -6 -6 -6 -6 -5 -4 ------- Run | Yrd Mat Min Exi Min Mat Sto Rec Fac Gar Fac Low Low Fac Fac Slots Evolved 12 | . . . . . 4 . . 4 . . . . 2 2 Power 1 | . . . . . 1 . . . . . . . . . Propulsion 3 | . . . . . . . . 1 . . . . 1 1 Utility 6 | . . . . . 3 . . 2 . . . . . 1 Weapon 2 | . . . . . . . . 1 . . . . 1 . Parts Attached 127 | 6 11 . 2 . 20 . 1 21 9 3 5 . 6 43 Power 15 | 1 1 . . . 2 . . 3 1 1 1 . . 5 Engine 4 | 1 1 . . . 1 . . . . . . . . 1 Core 8 | . . . . . 1 . . 3 1 1 1 . . 1 Reactor 3 | . . . . . . . . . . . . . . 3 Propulsion 29 | 2 1 . . . 6 . . 6 2 . . . 4 8 Treads 19 | 2 . . . . 4 . . 5 2 . . . 3 3 Leg 9 | . 1 . . . 2 . . 1 . . . . 1 4 Wheel . | . . . . . . . . . . . . . . . Hover 1 | . . . . . . . . . . . . . . 1 Flight . | . . . . . . . . . . . . . . . Utility 51 | 1 6 . 2 . 7 . 1 8 5 2 1 . 1 17 Device 26 | . . . 1 . 3 . . 4 4 2 1 . 1 10 Storage 6 | 1 5 . . . . . . . . . . . . . Processor 8 | . . . . . 2 . . . 1 . . . . 5 Hackware 1 | . . . . . . . 1 . . . . . . . Protection 10 | . 1 . 1 . 2 . . 4 . . . . . 2 Artifact . | . . . . . . . . . . . . . . . Weapon 32 | 2 3 . . . 5 . . 4 1 . 3 . 1 13 Energy Gun 11 | 1 . . . . 1 . . 1 1 . 1 . 1 5 Energy Cannon 6 | . . . . . 3 . . 2 . . . . . 1 Ballistic Gun 9 | 1 2 . . . . . . . . . . . . 6 Ballistic Cannon 3 | . . . . . 1 . . 1 . . 1 . . . Launcher 2 | . . . . . . . . . . . 1 . . 1 Special Weapon . | . . . . . . . . . . . . . . . Impact Weapon 1 | . 1 . . . . . . . . . . . . . Slashing Weapon . | . . . . . . . . . . . . . . . Piercing Weapon . | . . . . . . . . . . . . . . . Special Melee Weapon . | . . . . . . . . . . . . . . . Unidentified Prototypes 2 | . . . 1 . . . . . . . . . . 1 Parts Lost 65 | . . . . . 2 . 1 3 7 1 4 . 3 44 Power 9 | . . . . . . . 1 . . 1 1 . . 6 Propulsion 16 | . . . . . . . . . 2 . . . 2 12 Utility 20 | . . . . . 1 . . 1 4 . 1 . 1 12 Weapon 20 | . . . . . 1 . . 2 1 . 2 . . 14 Highest Loss Streak 21 | . . . . . 1 . 1 2 5 1 3 . 3 21 To Critical Strikes 3 | . . . . . . . . . . . . . . 3 Average Slot Usage (%) 94 | . 97 100 100 100 95 100 95 95 96 99 97 93 93 84 Engine 3 | . 14 14 14 14 8 9 4 . . . . . . . Core 8 | . . . . . 8 9 9 10 13 12 12 13 11 6 Treads 17 | . 20 14 14 14 17 18 18 19 19 20 20 20 17 10 Leg 3 | . 7 14 14 14 . . . . . . . . 4 8 Device 16 | . . . . . 11 18 10 19 21 32 31 26 22 17 Storage 7 | . 14 14 14 14 9 9 9 6 6 6 6 6 5 4 Processor 5 | . . . . . 7 9 9 . . 6 6 6 5 13 Hackware 2 | . . . . . . . 7 6 5 . . . . . Protection 7 | . 11 14 14 14 13 9 9 11 8 . . . . 1 Energy Gun 7 | . 14 14 14 14 4 . . 6 5 6 9 6 11 8 Energy Cannon 6 | . . . . . 10 18 18 12 6 6 1 . . . Ballistic Gun 2 | . 10 14 14 14 . . . . . . . . . 3 Ballistic Cannon 2 | . . . . . 3 . . . 6 6 5 6 5 2 Naked Turns . | . . . . . . . . . . . . . . . Heaviest Build 69 | 14 20 20 20 20 41 39 39 65 65 48 48 46 51 69 Greatest Support 94 | 40 40 20 20 20 40 40 40 70 73 73 73 73 73 94 Greatest Overweight (x) 12 | . . . . . 1 . . 1 1 . . . 1 12 Average Overweight (x) . | . . . . . . . . . . . . . . . Largest Inventory Capacity 15 | 8 15 10 10 10 10 10 10 10 10 10 10 10 10 10 Average Capacity 9 | 6 9 10 10 10 10 10 10 10 10 10 10 10 10 9 Most Carried 10 | 4 9 10 10 9 10 10 10 10 10 10 9 8 7 10 Average Carried 8 | 2 7 9 9 9 9 10 9 9 9 8 7 8 5 6 Final Capacity 10 | 8 10 10 10 10 10 10 10 10 10 10 10 10 10 5 Final Carried 10 | 4 8 10 9 9 10 10 10 10 10 9 8 8 5 . Class Distribution -------------------- 38% | Scavenger-Skirmisher 25% | Mutant 13% | Scavenger-Gunner 10% | Scavenger-Tank 9% | Scavenger-Mutant Dominant Class ---------------- Mutant | -10/Materials Mutant | -10/Mines Mutant | -10/Exiles Mutant | -9/Mines Mutant | -8/Materials Scavenger-Mutant | -8/Storage Scavenger-Mutant | -8/Recycling Scavenger-Skirmisher | -6/Factory Scavenger-Skirmisher | -6/Garrison Scavenger-Tank | -6/Factory Scavenger-Tank | -6/Lower Caves Scavenger-Tank | -6/Lower Caves Scavenger-Skirmisher | -5/Factory Scavenger-Gunner | -4/Factory Resources | -11 -10 -10 -10 -9 -8 -8 -8 -6 -6 -6 -6 -6 -5 -4 ----------- Run | Yrd Mat Min Exi Min Mat Sto Rec Fac Gar Fac Low Low Fac Fac Matter Collected 1913 | 139 299 17 . . 247 . 5 163 322 59 95 . 32 535 Remotely . | . . . . . . . . . . . . . . . Salvage Created 3013 | . 295 . . . 494 65 51 479 453 53 351 . 89 683 Parts 148 | . 14 . . . 24 4 2 24 20 . 19 . 3 38 Haulers Intercepted 1 | . . . . . 1 . . . . . . . . . Recyclers Shooed 3 | . 1 . . . . . . . . . . . . 2 Parts Field Recycled . | . . . . . . . . . . . . . . . Retrieved Matter . | . . . . . . . . . . . . . . . Parts Self-Destructed 8 | . . . . . . . . . . . 8 . . . Prevented 7 | . . . . . . . . . . . 7 . . . Kills | -11 -10 -10 -10 -9 -8 -8 -8 -6 -6 -6 -6 -6 -5 -4 ------- Run | Yrd Mat Min Exi Min Mat Sto Rec Fac Gar Fac Low Low Fac Fac Combat Hostiles Destroyed 69 | . 11 . . . 9 1 1 11 11 1 10 . 2 12 Guns 31 | . 10 . . . . . . 4 2 1 3 . 1 10 Cannons 29 | . . . . . 7 1 1 5 9 . 3 . 1 2 AOE 4 | . . . . . . . . . . . 4 . . . Classes Destroyed 10 | . 2 . . . 4 1 . 1 1 . . . . 1 Builder 4 | . . . . . . . . . . . . . . 4 Hauler 1 | . . . . . 1 . . . . . . . . . Operator 2 | . . . . . . 1 . . . . . . . 1 Watcher 2 | . . . . . 1 . . 1 . . . . . . Swarmer 19 | . 5 . . . . . . 3 3 . 7 . . 1 Grunt 24 | . 6 . . . 6 1 . 3 4 . 3 . . 1 Brawler 1 | . . . . . 1 . . . . . . . . . Sentry 8 | . . . . . 2 . 1 . 2 1 . . . 2 Hunter 7 | . . . . . . . . . 2 . . . 2 3 Programmer 10 | . . . . . . . . 5 . . . . . 5 Best Kill Streak 5 | . 3 . . . 5 1 1 3 4 1 4 . 2 3 Combat Bots Only 4 | . 3 . . . 4 1 1 3 4 1 4 . 2 2 Max Kills in Single Turn 4 | . 1 . . . 1 1 1 1 1 1 4 . 1 2 Gunslinging . | . . . . . . . . . . . . . . . Exploded 3 | . . . . . . . . . . . 3 . . . Melee . | . . . . . . . . . . . . . . . Uniques/NPCs Destroyed . | . . . . . . . . . . . . . . . Combat | -11 -10 -10 -10 -9 -8 -8 -8 -6 -6 -6 -6 -6 -5 -4 -------- Run | Yrd Mat Min Exi Min Mat Sto Rec Fac Gar Fac Low Low Fac Fac Hostile Shots Fired 949 | . 56 . . . 49 1 6 65 138 36 36 . 49 513 Missed 317 | . 15 . . . 12 1 2 15 38 12 14 . 17 191 Damage Taken 9585 | . 438 . . . 706 . 58 819 1090 169 383 . 396 5526 Core 1704 | . 83 . . . 204 . . 64 100 5 16 . 63 1169 Absorbed by Shields . | . . . . . . . . . . . . . . . Redirected to Shielding 133 | . 23 . . . 9 . . . 101 . . . . . Ignored by Resistances 185 | . . . . . . . . 55 130 . . . . . Core Remaining (%) 79 | 100 . . . 66 . . 62 . . . . 78 93 . Volleys Fired 184 | . 27 . . . 26 4 2 39 27 4 9 . 6 40 Largest 4 | . 2 . . . 2 2 2 3 3 3 3 . 3 4 Hottest 230 | . 70 . . . 160 140 140 205 202 202 229 . 202 230 Shots Fired 491 | . 51 . . . 52 8 4 106 80 12 25 . 18 135 Gun 265 | . 51 . . . 8 . . 37 25 4 12 . 12 116 Cannon 220 | . . . . . 44 8 4 69 55 8 8 . 6 18 Launcher 6 | . . . . . . . . . . . 5 . . 1 Special . | . . . . . . . . . . . . . . . Kinetic 152 | . 24 . . . 8 . . 4 28 4 6 . 6 72 Thermal 330 | . 27 . . . 44 8 4 102 52 8 14 . 12 59 Explosive . | . . . . . . . . . . . . . . . Electromagnetic 9 | . . . . . . . . . . . 5 . . 4 Robot Hit Streak 20 | . 7 . . . 10 7 2 8 8 6 8 . 5 20 Robot Miss Streak 8 | . 3 . . . 1 2 1 7 8 1 4 . 5 3 Penetration Max 1 | . . . . . . . . . . . . . . 1 Secondary Targets 2 | . 2 . . . . . . . . . . . . . Max Gunslinging Chain 1 | . 1 . . . . . . . . . . . . . Shots Hit Robots 320 | . 38 . . . 41 3 3 61 41 8 16 . 12 97 Core Hits 163 | . 17 . . . 16 2 1 23 20 2 23 . 8 51 Critical Kills 6 | . . . . . 1 . . 2 . . . . . 3 Critical Parts Destroyed 2 | . . . . . . . . . . . . . . 2 Critical Strikes 17 | . 3 . . . 1 . . 2 1 . . . . 10 Burn 7 | . 3 . . . . . . . . . . . . 4 Meltdown 3 | . . . . . 1 . . 2 . . . . . . Destroy 5 | . . . . . . . . . . . . . . 5 Blast 1 | . . . . . . . . . 1 . . . . . Corrupt 1 | . . . . . . . . . . . . . . 1 Melee Attacks 6 | . 6 . . . . . . . . . . . . . Impact 6 | . 6 . . . . . . . . . . . . . Slashing . | . . . . . . . . . . . . . . . Piercing . | . . . . . . . . . . . . . . . Sneak Attacks . | . . . . . . . . . . . . . . . Combat Hostiles . | . . . . . . . . . . . . . . . Follow-up Attacks . | . . . . . . . . . . . . . . . Damage Inflicted 7498 | . 556 . . . 905 70 78 1357 985 204 503 . 176 2664 Guns 3314 | . 459 . . . 87 . . 405 209 38 192 . 98 1826 Cannons 3414 | . . . . . 818 70 78 952 776 165 110 . 78 367 Explosions 659 | . . . . . . . . . . . 201 . . 458 Melee 96 | . 96 . . . . . . . . . . . . . Ramming 15 | . 1 . . . . . . . . 1 . . . 13 Kinetic 2217 | . 209 . . . 130 . . 73 394 85 110 . 78 1138 Thermal 4466 | . 250 . . . 775 70 78 1284 591 118 192 . 98 1010 Explosive 364 | . . . . . . . . . . . . . . 364 Electromagnetic 340 | . . . . . . . . . . . 201 . . 139 Impact 96 | . 96 . . . . . . . . . . . . . Slashing . | . . . . . . . . . . . . . . . Piercing . | . . . . . . . . . . . . . . . Highest Corruption 12 | . 4 4 4 4 . . . 3 3 3 . . . 12 Average Corruption 4 | . 3 4 4 4 . . . 2 3 2 . . . 9 Corruption Purged 3 | . . . . . . . . . . 3 . . . . Corruption Blocked . | . . . . . . . . . . . . . . . Effects 87 | . 9 1 7 2 . . . 19 19 3 . . . 27 Message Errors 26 | . 2 . 3 . . . . 8 7 1 . . . 5 Matter Fused 15 | . 2 1 . . . . . 4 3 . . . . 5 Heat Flow Errors 12 | . . . . 2 . . . 2 3 . . . . 5 Energy Discharges 12 | . . . 3 . . . . 2 3 2 . . . 2 Parts Rejected 2 | . 1 . . . . . . . . . . . . 1 Parts Fused 2 | . . . . . . . . . . . . . . 2 Data Loss (minor) 10 | . 2 . 1 . . . . 2 1 . . . . 4 Data Loss (major) 2 | . 1 . . . . . . . 1 . . . . . Misfires 2 | . . . . . . . . 1 1 . . . . . Alerts 2 | . 1 . . . . . . . . . . . . 1 Weapon Failures 2 | . . . . . . . . . . . . . . 2 Overload Shots . | . . . . . . . . . . . . . . . Overflow Damage 278 | . 18 . . . . . . 34 3 . . . . 223 Projectiles 105 | . . . . . . . . 34 3 . . . . 68 Explosions 155 | . . . . . . . . . . . . . . 155 Melee 18 | . 18 . . . . . . . . . . . . . Knockbacks 20 | . . . . . 2 . . 2 4 . 3 . 3 6 Impact . | . . . . . . . . . . . . . . . Kinetic 19 | . . . . . 2 . . 2 3 . 3 . 3 6 Secondary 1 | . . . . . . . . . 1 . . . . . Self-Inflicted Damage 15 | . . . . . . . . . . . 9 . . 6 Shots 1 | . . . . . . . . . . . 1 . . . Rammed 5 | . 1 . . . 1 . . . . 1 . . . 2 Targets Rammed 6 | . 1 . . . 2 . . . . 1 . . . 2 Kicked . | . . . . . . . . . . . . . . . Crushed 1 | . . . . . 1 . . . . . . . . . Highest Temperature 522 | . 111 . . 243 522 6 96 347 308 105 214 . 48 401 Average Temperature 95 | . 44 . . 144 162 4 58 84 119 51 73 . 24 93 Received Heat Transfer 1586 | . 177 . . . 297 . 27 234 249 42 81 . . 479 Effects 5 | . . . . . 2 . . 1 . . . . . 2 Shutdowns 1 | . . . . . 1 . . . . . . . . . Interference 3 | . . . . . . . . 1 . . . . . 2 Damage (core) 1 | . . . . . 1 . . . . . . . . . Siege Activations . | . . . . . . . . . . . . . . . Robots Corrupted . | . . . . . . . . . . . . . . . Combat Hostiles . | . . . . . . . . . . . . . . . Parts Fried 2 | . 1 . . . . . . . . . . . . 1 Impact Corruptions 2 | . 2 . . . . . . . . . . . . . Robots Melted 4 | . . . . . 2 . . 2 . . . . . . Combat Hostiles 4 | . . . . . 2 . . 2 . . . . . . Parts Melted 27 | . 6 . . . 1 . . 12 2 1 1 . . 4 Heat Transferred 9337 | . 962 . . . 1490 124 137 2365 1231 224 424 . 212 2168 Parts Sabotaged 2 | . . . . . . . . . . . . . . 2 Parts Stolen . | . . . . . . . . . . . . . . . Parts Stripped . | . . . . . . . . . . . . . . . Power Chain Reactions 2 | . . . . . . . . . . . 2 . . . Alert | -11 -10 -10 -10 -9 -8 -8 -8 -6 -6 -6 -6 -6 -5 -4 ------- Run | Yrd Mat Min Exi Min Mat Sto Rec Fac Gar Fac Low Low Fac Fac Peak Influence 456 | . 315 122 . . 158 222 86 178 456 275 . . 113 229 Initial 239 | . . 122 . . . 3 86 . 115 239 . . 81 14 Average 85 | . 85 122 . . 36 72 29 38 278 223 . . 86 68 Maximum Alert Level 2 | . 1 . . . . 1 . . 2 1 . . . 1 Low Security (%) 83 | 100 83 100 . 100 100 84 100 100 17 20 . . 100 91 Level 1 15 | . 16 . . . . 15 . . 73 79 . . . 8 Level 2 . | . . . . . . . . . 8 . . . . . Level 3 . | . . . . . . . . . . . . . . . Level 4 . | . . . . . . . . . . . . . . . Level 5 . | . . . . . . . . . . . . . . . High Security . | . . . . . . . . . . . . . . . Max Security . | . . . . . . . . . . . . . . . Squads Dispatched 14 | . 1 . . . 1 2 . 4 . . . . . 6 Investigation 1 | . . . . . . . . . . . . . . 1 Extermination 6 | . . . . . . . . 3 . . . . . 3 Reinforcement 7 | . 1 . . . 1 2 . 1 . . . . . 2 Assault . | . . . . . . . . . . . . . . . Garrison . | . . . . . . . . . . . . . . . Intercept . | . . . . . . . . . . . . . . . Searches Triggered . | . . . . . . . . . . . . . . . Construction Impeded 1 | . . . . . . . . . . . . . . 1 Haulers Reinforced . | . . . . . . . . . . . . . . . Active Scanning Responses . | . . . . . . . . . . . . . . . Cargo Convoy Interrupts 1 | . . . . . . . . . . . . . . 1 Stealth | -11 -10 -10 -10 -9 -8 -8 -8 -6 -6 -6 -6 -6 -5 -4 --------- Run | Yrd Mat Min Exi Min Mat Sto Rec Fac Gar Fac Low Low Fac Fac Distress Signals 10 | . 3 . . . 2 . . . . . . . 1 4 Communications Jammed . | . . . . . . . . . . . . . . . Distress Signals . | . . . . . . . . . . . . . . . Times Spotted 140 | . 19 . . . 18 7 1 22 17 1 10 . 4 41 Peak Tracking Total 17 | . 4 . . . 6 3 1 3 3 1 4 . 4 17 Tactical Retreats 15 | . 4 . . . 2 . . . 2 . . . 1 6 Traps | -11 -10 -10 -10 -9 -8 -8 -8 -6 -6 -6 -6 -6 -5 -4 ------- Run | Yrd Mat Min Exi Min Mat Sto Rec Fac Gar Fac Low Low Fac Fac Traps Triggered 6 | . 2 . . . . . . 1 . . . . 1 2 Indirectly . | . . . . . . . . . . . . . . . Trap Hack Attempts . | . . . . . . . . . . . . . . . Triggered . | . . . . . . . . . . . . . . . Disarmed . | . . . . . . . . . . . . . . . Reprogrammed . | . . . . . . . . . . . . . . . Reused . | . . . . . . . . . . . . . . . Traps Extracted . | . . . . . . . . . . . . . . . Installed . | . . . . . . . . . . . . . . . Triggered . | . . . . . . . . . . . . . . . Machines | -11 -10 -10 -10 -9 -8 -8 -8 -6 -6 -6 -6 -6 -5 -4 ---------- Run | Yrd Mat Min Exi Min Mat Sto Rec Fac Gar Fac Low Low Fac Fac Machines Disabled 10 | . . . . . 1 2 . 1 2 . . . . 4 Max in Single Turn 2 | . . . . . 1 . . 1 1 . . . . 2 Garrison Relay 1 | . . . . . . . . . 1 . . . . . Machines Repaired . | . . . . . . . . . . . . . . . Machines Dismantled . | . . . . . . . . . . . . . . . Machines Sabotaged . | . . . . . . . . . . . . . . . Overloaded Fab Kills . | . . . . . . . . . . . . . . . Hacking | -11 -10 -10 -10 -9 -8 -8 -8 -6 -6 -6 -6 -6 -5 -4 --------- Run | Yrd Mat Min Exi Min Mat Sto Rec Fac Gar Fac Low Low Fac Fac Machines Accessed 26 | . 3 . . . 4 1 6 7 1 1 . . 1 2 Terminals 21 | . 3 . . . 3 1 6 4 1 1 . . . 2 Fabricators 1 | . . . . . . . . 1 . . . . . . Repair Stations 1 | . . . . . . . . . . . . . 1 . Recycling Units . | . . . . . . . . . . . . . . . Scanalyzers 2 | . . . . . 1 . . 1 . . . . . . Garrison Access 1 | . . . . . . . . 1 . . . . . . Total Hacks 54 | . 3 . . . 13 2 13 13 1 3 . . 3 3 Successful 18 | . . . . . 8 . 3 5 . 1 . . 1 . Failed 35 | . 3 . . . 5 2 9 8 1 2 . . 2 3 Catastrophic 9 | . . . . . 3 . 3 1 . 1 . . 1 . Database Lockouts 1 | . . . . . . . 1 . . . . . . . Manual 35 | . 4 . 1 . 4 2 13 6 1 3 . . . 1 Terminals 37 | . 3 . . . 4 2 13 8 1 3 . . . 3 Fabricators 2 | . . . . . . . . 2 . . . . . . Repair Stations 3 | . . . . . . . . . . . . . 3 . Recycling Units . | . . . . . . . . . . . . . . . Scanalyzers 11 | . . . . . 9 . . 2 . . . . . . Garrison Access 1 | . . . . . . . . 1 . . . . . . Terminal Hacks 5 | . . . . . . . 3 1 . 1 . . . . Part Schematic 1 | . . . . . . . 1 . . . . . . . Open DSF 1 | . . . . . . . . 1 . . . . . . Branch Access Points 1 | . . . . . . . 1 . . . . . . . Unreport Threat 2 | . . . . . . . 1 . . 1 . . . . Fabricator Hacks 1 | . . . . . . . . 1 . . . . . . Load Schematic 1 | . . . . . . . . 1 . . . . . . Repair Station Hacks 1 | . . . . . . . . . . . . . 1 . Scan Component 1 | . . . . . . . . . . . . . 1 . Recycling Unit Hacks . | . . . . . . . . . . . . . . . Scanalyzer 10 | . . . . . 8 . . 2 . . . . . . Insert Component 4 | . . . . . 3 . . 1 . . . . . . Analyze 6 | . . . . . 5 . . 1 . . . . . . Garrison Access Hacks 1 | . . . . . . . . 1 . . . . . . Unlock Access 1 | . . . . . . . . 1 . . . . . . Unauthorized Hacks . | . . . . . . . . . . . . . . . Terminals . | . . . . . . . . . . . . . . . Fabricators . | . . . . . . . . . . . . . . . Repair Stations . | . . . . . . . . . . . . . . . Recycling Units . | . . . . . . . . . . . . . . . Scanalyzers . | . . . . . . . . . . . . . . . Garrison Access . | . . . . . . . . . . . . . . . Data Cores Recovered 1 | . . . . . . . . . . . . . . 1 Used 1 | . . . . . . . . . . . . . . 1 Hacking Detections 23 | . 3 . . . 4 1 5 5 1 1 . . 1 2 Full Trace Events . | . . . . . . . . . . . . . . . Feedback Events . | . . . . . . . . . . . . . . . Feedback Blocked . | . . . . . . . . . . . . . . . Robot Schematics Acquired . | . . . . . . . . . . . . . . . Robots Built . | . . . . . . . . . . . . . . . Authchips . | . . . . . . . . . . . . . . . Time . | . . . . . . . . . . . . . . . Total Robot Build Rating . | . . . . . . . . . . . . . . . Part Schematics Acquired 4 | . . . . . 2 . 1 1 . . . . . . Parts Built . | . . . . . . . . . . . . . . . Authchips . | . . . . . . . . . . . . . . . Time . | . . . . . . . . . . . . . . . Total Part Build Rating . | . . . . . . . . . . . . . . . Parts Repaired . | . . . . . . . . . . . . . . . Time . | . . . . . . . . . . . . . . . Parts Recycled . | . . . . . . . . . . . . . . . Recycled Matter . | . . . . . . . . . . . . . . . Retrieved Matter . | . . . . . . . . . . . . . . . Retrieved Components . | . . . . . . . . . . . . . . . Parts Scanalyzed 4 | . . . . . 3 . . 1 . . . . . . Part Schematics Acquired 3 | . . . . . 2 . . 1 . . . . . . Parts Damaged . | . . . . . . . . . . . . . . . Bothacking | -11 -10 -10 -10 -9 -8 -8 -8 -6 -6 -6 -6 -6 -5 -4 ------------ Run | Yrd Mat Min Exi Min Mat Sto Rec Fac Gar Fac Low Low Fac Fac Used RIF Installer . | . . . . . . . . . . . . . . . Robots Hacked . | . . . . . . . . . . . . . . . Non-combat . | . . . . . . . . . . . . . . . Combat . | . . . . . . . . . . . . . . . Robot Hacks Applied . | . . . . . . . . . . . . . . . Relay Couplers Released 9 | . . . . . . . . 4 5 . . . . . Machine Destruction 5 | . . . . . . . . . 5 . . . . . Programmers 4 | . . . . . . . . 4 . . . . . . Fabnet Peak Effective % . | . . . . . . . . . . . . . . . Robots Rewired . | . . . . . . . . . . . . . . . Allies Hacked . | . . . . . . . . . . . . . . . Hacks Repelled . | . . . . . . . . . . . . . . . Allies | -11 -10 -10 -10 -9 -8 -8 -8 -6 -6 -6 -6 -6 -5 -4 -------- Run | Yrd Mat Min Exi Min Mat Sto Rec Fac Gar Fac Low Low Fac Fac Total Allies 3 | . . 1 . . . 1 . . 1 . . . . . Largest Group 1 | . . 1 1 . . 1 1 . 1 . . . . . Highest-Rated Group 100 | . . 31 31 . . 100 95 . 80 . . . . . Highest-Rated Ally 100 | . . 31 31 . . 100 95 . 80 . . . . . Total Orders . | . . . . . . . . . . . . . . . Ally Attacks 17 | . . . . . . 11 . . 6 . . . . . Total Damage 835 | . . . . . . 496 . . 339 . . . . . Kills 7 | . . . . . . 4 . . 3 . . . . . Allies Corrupted . | . . . . . . . . . . . . . . . Allies Melted . | . . . . . . . . . . . . . . . Intel | -11 -10 -10 -10 -9 -8 -8 -8 -6 -6 -6 -6 -6 -5 -4 ------- Run | Yrd Mat Min Exi Min Mat Sto Rec Fac Gar Fac Low Low Fac Fac Robot Analysis Total . | . . . . . . . . . . . . . . . Derelict Logs Recovered 2 | . . 1 . . . . . . . . . 1 . . Drone Launches 2 | . . . . . . . . . . . . . . 2 Drone Recoveries 1 | . . . . . . . . . . . . . . 1 Exploration | -11 -10 -10 -10 -9 -8 -8 -8 -6 -6 -6 -6 -6 -5 -4 ------------- Run | Yrd Mat Min Exi Min Mat Sto Rec Fac Gar Fac Low Low Fac Fac Turns Passed 9689 | 73 725 79 341 55 888 246 852 2097 958 369 524 87 451 1944 Spaces Moved 4839 | 41 359 49 211 35 374 135 507 797 527 203 295 54 201 1051 Core 60 | 4 . . . . . . . . . . . . . 56 Treads 4304 | 37 359 49 211 35 374 135 507 797 527 203 295 54 201 520 Legs 447 | . . . . . . . . . . . . . . 447 Wheels . | . . . . . . . . . . . . . . . Hover 28 | . . . . . . . . . . . . . . 28 Flight . | . . . . . . . . . . . . . . . Fastest Speed 50 | 50 160 160 160 160 160 160 160 160 160 163 163 163 163 50 Average Speed 156 | 149 160 160 160 160 160 160 160 160 161 163 163 163 163 139 Slowest Speed 650 | 160 160 160 160 160 240 160 160 240 240 163 163 163 245 650 Overloaded Moves . | . . . . . . . . . . . . . . . Propulsion Burnouts . | . . . . . . . . . . . . . . . Robots Hopped . | . . . . . . . . . . . . . . . Cave-ins Triggered . | . . . . . . . . . . . . . . . Exploration Rate (%) 29 | 5 57 13 60 7 19 32 91 19 42 4 55 8 6 24 Regions Visited 14 Branch Regions 7 Pre-discovered Areas 2 | . . 1 . . . . . . . . 1 . . . Known Exits Taken 1 | . . . . . . . . 1 . . . . . . Unknown Exits Taken 12 | 1 1 1 1 1 1 1 1 . . 1 1 1 1 . Scrap Searched 2 | . . 1 . . . . . . . . 1 . . . Spaces Dug 1 | . . . . . . . . . . . . . . 1 Terrain Destroyed 57 | . . . . . 6 3 . 1 2 1 12 . . 32 Melee . | . . . . . . . . . . . . . . . Projectile 15 | . . . . . 6 3 . 1 2 1 . . . 2 AOE 42 | . . . . . . . . . . . 12 . . 30 Terrain Rammed . | . . . . . . . . . . . . . . . Walls Destroyed . | . . . . . . . . . . . . . . . Machines Disabled . | . . . . . . . . . . . . . . . Actions | -11 -10 -10 -10 -9 -8 -8 -8 -6 -6 -6 -6 -6 -5 -4 --------- Run | Yrd Mat Min Exi Min Mat Sto Rec Fac Gar Fac Low Low Fac Fac Total 6552 | 50 446 50 215 34 613 158 544 1531 573 233 315 53 310 1427 Wait 1286 | . 34 . . . 164 18 31 661 7 17 3 . 92 259 Move 4823 | 40 358 48 210 34 373 134 506 796 524 202 294 53 200 1051 Hop . | . . . . . . . . . . . . . . . Pick Up 64 | 4 3 2 1 . 12 1 1 6 3 2 2 . 4 23 Fast Attach 47 | 6 6 . . . 9 . . 9 5 1 1 . . 10 Attach 58 | . 1 . 1 . 4 . 1 8 2 2 3 . 6 30 Detach 8 | . 2 . . . 2 . . 1 . 1 . . . 2 Swap 22 | . 4 . 1 . 7 . . 4 2 . 1 . . 3 Drop 43 | . 4 . 2 . 14 1 1 7 3 3 1 . 2 5 Fire 184 | . 27 . . . 26 4 2 39 27 4 9 . 6 40 Melee 6 | . 6 . . . . . . . . . . . . . Ram 2 | . . . . . . . . . . . . . . 2 Kick . | . . . . . . . . . . . . . . . Crush 4 | . 1 . . . 2 . . . . 1 . . . . Escape Stasis 2 | . . . . . . . . . . . . . . 2 Rewire 3 | . . . . . . . 2 . . . 1 . . . Trap . | . . . . . . . . . . . . . . . Miscellaneous . | . . . . . . . . . . . . . . . Route ------- -11/Scrapyard -10/Materials -10/Mines (discovered 2 exits: [*Mat] / *Exi) -10/Exiles -9/Mines -8/Materials -8/Storage -8/Recycling -6/Factory -6/Garrison (discovered 2 exits: *Fac x2) -6/Factory -6/Lower Caves -6/Lower Caves -5/Factory -4/Factory History --------- Turn | Location | Event 9 | -11/Scrapyard | Discovered new exit (range 15) 74 | -11/Scrapyard | Entered Materials 296 | -10/Materials | Discovered new exit (range 14) 312 | -10/Materials | Build established: Mutant 799 | -10/Materials | Entered Mines 802 | -10/Mines | Received a Mining Laser from a helpful Derelict 815 | -10/Mines | Discovered new exit (range 8) 831 | -10/Mines | Learned location of Storage (-8) 870 | -10/Mines | Deemed a non-threat by the Exiles lab entrance 870 | -10/Mines | Discovered new exit (range 5) 878 | -10/Mines | Entered Exiles 878 | -10/Exiles | Accompanied by 1 ally 917 | -10/Exiles | Met 8R-AWN 944 | -10/Exiles | Met EX-HEX 990 | -10/Exiles | Met EX-BIN 1010 | -10/Exiles | Aligned with FarCom system 1011 | -10/Exiles | Given EX-Vault access code 1050 | -10/Exiles | Opened EX-Vault 1057 | -10/Exiles | Found Prototype Device 1086 | -10/Exiles | Identified Cloak of Protection 1093 | -10/Exiles | Warned to stay clear of 0b10 Research branches 1119 | -10/Exiles | Exiles lab attacked by MAIN.C 1205 | -10/Exiles | Discovered new exit (range 11) 1219 | -10/Exiles | Entered Mines 1240 | -9/Mines | Discovered new exit (range 9) 1255 | -9/Mines | Met a Derelict bent on vengeance 1274 | -9/Mines | Entered Materials 1274 | -8/Materials | Evolved 4 slots: Power x1, Utility x3 1417 | -8/Materials | Discovered new exit (range 16) 2162 | -8/Materials | Entered Storage 2198 | -8/Storage | Met 01-MTF 2359 | -8/Storage | Build established: Scavenger-Mutant 2383 | -8/Storage | Discovered new exit (range 8) 2408 | -8/Storage | Entered Recycling 2408 | -8/Recycling | Accompanied by 1 ally (01-MTF) 2413 | -8/Recycling | 01-MTF left 3163 | -8/Recycling | Build established: Mutant 3237 | -8/Recycling | Discovered new exit (range 5) 3260 | -8/Recycling | Entered Factory 3260 | -6/Factory | Evolved 4 slots: Propulsion x1, Utility x2, Weapon x1 3568 | -6/Factory | Build established: Scavenger-Skirmisher 5355 | -6/Factory | Identified exit to Garrison 5357 | -6/Factory | Entered Garrison 5523 | -6/Garrison | Triggered checkpoint 5674 | -6/Garrison | Garrison Relay disabled 5779 | -6/Garrison | Triggered checkpoint 5861 | -6/Garrison | Discovered new exit (range 8) 5899 | -6/Garrison | Spotted B-86 Titan 5983 | -6/Garrison | Triggered checkpoint 6047 | -6/Garrison | Lost 5 parts (1n3u1w) 6158 | -6/Garrison | Attempted to access garrison exit controls, blocked by remote lockdown 6300 | -6/Garrison | Discovered new exit (range 8) 6315 | -6/Garrison | Entered Factory 6338 | -6/Factory | Discovered new exit (range 8) 6684 | -6/Factory | Entered Lower Caves 6690 | -6/Lower Caves | Met a Warlord Commander 6691 | -6/Lower Caves | Learned location of Warlord (-4) 6692 | -6/Lower Caves | Warlord Commander delivered Encrypted Comm Array 6696 | -6/Lower Caves | Found Encrypted Comm Array 6755 | -6/Lower Caves | Build established: Scavenger-Tank 6872 | -6/Lower Caves | Lost 3 parts (1p2w) 7186 | -6/Lower Caves | Discovered new exit (range 13) 7208 | -6/Lower Caves | Entered another Lower Caves area 7228 | -6/Lower Caves | Learned Factory interactive machine intel 7277 | -6/Lower Caves | Discovered new exit (range 10) 7295 | -6/Lower Caves | Entered Factory 7295 | -5/Factory | Evolved 2 slots: Propulsion x1, Weapon x1 7296 | -5/Factory | Loaded intel: 54 interactive machine locations 7421 | -5/Factory | Lost 3 parts (2n1u) 7507 | -5/Factory | Discovered new exit (range 5) 7688 | -5/Factory | Build established: Scavenger-Skirmisher 7746 | -5/Factory | Entered another Factory area 7746 | -4/Factory | Evolved 2 slots: Propulsion x1, Utility x1 8222 | -4/Factory | Build established: Scavenger-Gunner 8795 | -4/Factory | Spotted B-86 Titan 8892 | -4/Factory | Lost 10 parts (1p3n3u3w) 8900 | -4/Factory | System corruption reached 10% 9559 | -4/Factory | Core integrity fell below 50% 9586 | -4/Factory | Lost 21 parts (3p6n3u9w) 9672 | -4/Factory | Core integrity fell below 20% 9676 | -4/Factory | Spotted Executioner 9677 | -4/Factory | Cargo convoy interrupted 9690 | -4/Factory | Destroyed by A-27 Freighter with PD Laser Last Messages --------------- 09677_ ALERT: Cargo convoy interrupted, initiating access lockdown. 09677_ U-05 Engineer lays Concrete. 09677_ Imp. Target Analyzer destroyed. 09677_ Slammed into S-27 Virus. 09678_ U-05 Engineer lays Concrete. 09679_ Slammed into S-27 Virus. 09680_ Acquired 27 matter. 09681_ Penetrated by Slug. 09681_ Slug penetrates H-77 Assassin. 09681_ Penetrated by Slug. 09681_ Slug penetrates H-77 Assassin. 09682_ Slug penetrates Subcomponent Replicator. 09682_ Penetrated by Slug. 09683_ K-01 Serf collects debris. 09684_ Encrypted Comm Array blown off. 09684_ Adv. Targeting Computer blown off. 09684_ E-15 Imp destroyed. 09685_ Identified Imp. Cloaking Device. 09689_ Imp. Cloaking Device destroyed. Map ----- +----------------------------------------------------+ | # #?# ## #????# # #????? | | # #?### #### #????# # #????? | | # #???# #??#+###### ##########????? | | + #???# #??# # #?????????????? | | # #???# #??# """ # #?????????????? | | # #???# #??# """ # #?????????????? | | # #???# #??# """ # #?????????????? | | # #???# #??# # ##############? | | # #???# #??# # # #? | | ##############???# #??# + + #? | | ?????????????#####+#### # # #? | | ?????????????# #"" # # #? | | ############## """" #"" # # #? | | ## """" #G # # "" "" #? | | ## """" ""#"" # # "" "" #? | | ! ## """" ""#"" # # """ """ #? | | ## """" G# # # """ """ #? | | ## """" ""######## + """ """ #? | | ^ ## ""???????# # #? | | """ """ ##] ? ???????# # #? | | """ """ #####+############ ##############? | | """ """ k ?????????? | | """ """ ?????????? | | ????????? | | ig ????????? | | A @ ????????? | | ###+######/#############+#########???????????????? | | ?? ?????# % # #????????????????? | | ?????????# !! ""# #????????????????? | | ?????????# [! ""# #????????????????? | | ?????????# !! Cg "# #????????????????? | | ?????????# """g ""#ss #????????????????? | | ?????????# %" """ " # #????????????????? | | ?????????# " " gh#p #????????????????? | | ?????????# x* Eh "#???????????????? | | ?????????# """" Y# ##???????????????? | | ?????????# """""=x # #????????????????? | | ?????????# """ # #????????????????? | | ?????????# # #????????????????? | | ?????????## ########### #????????????????? | | ??????????##??????????# #????????????????? | | ??????????????????????# #????????????????? | | ??????????????????????? #????????????????? | | ???????????????????????##########????????????????? | | ?????????????????????????????????????????????????? | | ?????????????????????????????????????????????????? | | ?????????????????????????????????????????????????? | | ?????????????????????????????????????????????????? | | ?????????????????????????????????????????????????? | | ?????????????????????????????????????????????????? | +----------------------------------------------------+ Best States ------------- Heat Dissipation 98 Energy Generation 37 Energy Capacity 300 Matter Stores 300 Matter Capacity 400 Sight Range 20 Terrain Scan Range 20 Terrain Scan Density 210 Jamming Range 16 Additional Mass Support 9 Corruption Containment 12 Armor Coverage 450 Resistance: KI 30 Resistance: EX 25 Power Shielding 33 Utility Shielding 33 Weapon Shielding 66 Phase Shifting 10 Evasion (%) 65 Targeting Accuracy 13 Target Analysis 11 Recoil Reduction 4 Offensive Hacking 10 Item Schematics ----------------- Imp. Treads | -8/Materials | Scanalyzed Arm. Treads | -8/Materials | Scanalyzed Deuterium Engine | -8/Recycling | Hacked Imp. Sensor Array | -6/Factory | Scanalyzed Robot Schematics ------------------ None Fabricated ------------ Nothing Alien Tech Used ----------------- None Achievements -------------- Dynamic Key \\IAMDERELICT Challenges ------------ None Game ------ Seed AccelerationReflectiveLegs Manual? 0 Play Time 01:34:41 Cumulative 18.7 hours Start 2024.06.28 @ 18:25:20 End 2024.06.29 @ 10:53:06 Sessions 5 Manual Loads 0 Difficulty Rogue Special Mode None Game No. 18 Rogue 18 Adventurer 0 Explorer 0 Win Type - Total 0 Types 0/0/0/0/0/0/0/0/0 Lore% 20 Gallery% 22 Achievement% 19 Wizard Run 0 Options --------- Layout 1 ASCII 0 Keyboard 0 Movement Arrows Keybinds 0 Fullscreen 2 Font 24/Terminus Map View 50x35 Zoom Use 0% Tactical HUD 1 Map Filters NONE Filters NONE Steam 1 RUN: 51da4820-80c6-46ab-8d1f-695335a2982c